fUSD/lending_fUSD_20250215
["ID","MTS","AMOUNT","RATE_DAILY","PERIOD"]
[353191386,1739639458978,-500.0,0.00011369,2]
[353191387,1739639458987,-1841.62,0.00011369,2]
[353191388,1739639458997,-956.67,0.00011369,2]
[353191389,1739639459006,-1096.54,0.00011369,2]
[353191390,1739639459015,-1305.88,0.00011369,2]
[353191391,1739639459024,-732.37,0.00011369,2]
[353191392,1739639459033,-903.44,0.00011369,2]
[353191393,1739639459042,-500.0,0.00011369,2]
[353191394,1739639459052,-1169.74,0.00011369,2]
[353191395,1739639459061,-1810.94,0.00011369,2]
[353191396,1739639459071,-1825.74,0.00011369,2]
[353191397,1739639459081,-500.0,0.00011369,2]
[353191398,1739639459091,-929.26,0.00011369,2]
[353191399,1739639459102,-1411.43,0.00011369,2]
[353191400,1739639459112,-500.0,0.00011369,2]
[353191401,1739639459122,-500.0,0.00011369,2]
[353191402,1739639459131,-500.0,0.00011369,2]
[353191403,1739639459140,-994.22,0.00011369,2]
[353191404,1739639459149,-2252.1,0.00011369,2]
[353191405,1739639459158,-500.0,0.00011369,2]
[353191406,1739639459168,-505.14,0.00011369,2]
[353191407,1739639459176,-2001.05,0.00011369,2]
[353191408,1739639459186,-508.98,0.00011369,2]
[353191409,1739639459196,-859.75,0.00011369,2]
[353191410,1739639459205,-1238.95,0.00011369,2]
[353191411,1739639459214,-2034.02,0.00011369,2]
[353191412,1739639459223,-769.84,0.00011369,2]
[353191413,1739639459232,-527.13,0.00011369,2]
[353191414,1739639459241,-1422.34,0.00011369,2]
[353191415,1739639459251,-500.0,0.00011369,2]
[353191416,1739639459261,-1405.36,0.00011369,2]
[353191417,1739639459270,-682.01,0.00011369,2]
[353191418,1739639459279,-650.06,0.00011369,2]
[353191419,1739639459288,-500.0,0.00011369,2]
[353191420,1739639459297,-708.99,0.00011369,2]
[353191421,1739639459307,-1138.23,0.00011369,2]
[353191422,1739639459316,-317.52579744,0.00011369,2]
[353191423,1739639459326,-500.0,0.00011369,2]
[353191424,1739639459335,-832.37,0.00011369,2]
[353191425,1739639459345,-1530.46,0.00011369,2]
[353191426,1739639459356,-712.77,0.00011369,2]
[353191427,1739639459366,-500.0,0.00011369,2]
[353191428,1739639459376,-500.0,0.00011369,2]
[353191429,1739639459385,-1081.12,0.00011369,2]
[353191430,1739639459395,-1105.64,0.00011369,2]
[353191431,1739639459404,-800.45,0.00011369,2]
[353191432,1739639459414,-890.19,0.00011369,2]
[353191433,1739639459424,-899.76,0.00011369,2]
[353191434,1739639459434,-500.0,0.00011369,2]
[353191435,1739639459443,-898.14,0.00011369,2]
[353191436,1739639459452,-541.36,0.00011369,2]
[353191437,1739639459462,-500.0,0.00011369,2]
[353191438,1739639459472,-763.98,0.00011369,2]
[353191439,1739639459481,-695.29,0.00011369,2]
[353191440,1739639459491,-635.13,0.00011369,2]
[353191441,1739639459500,-500.0,0.00011369,2]
[353191442,1739639459510,-2350.89,0.00011369,2]
[353191443,1739639459520,-500.0,0.00011369,2]
[353191444,1739639459529,-1026.92,0.00011369,2]
[353191445,1739639459539,-1720.36,0.00011369,2]
[353191446,1739639459548,-556.11,0.00011369,2]
[353191447,1739639459558,-500.0,0.00011369,2]
[353191448,1739639459568,-781.1,0.00011369,2]
[353191449,1739639459577,-627.61,0.00011369,2]
[353191450,1739639459587,-509.12662764,0.00011387,2]
[353191451,1739639459596,-500.0,0.00011392,2]
[353191452,1739639459605,-500.0,0.00011419,2]
[353191453,1739639459616,-500.0,0.00011437,2]
[353191454,1739639459626,-500.0,0.00011447,2]
[353191455,1739639459636,-334.355567,0.00011452,2]
[353191456,1739639459646,-646.332284,0.00011452,2]
[353191457,1739639459656,-150.036577,0.00011452,2]
[353191458,1739639459665,-504.27,0.00011452,2]
[353191459,1739639459675,-376.65,0.00011452,2]
[353191460,1739639459690,-1611.31,0.00011452,2]
[353191461,1739639459700,-500.0,0.00011452,2]
[353191462,1739639459709,-500.0,0.00011452,2]
[353191463,1739639459718,-500.0,0.00011452,2]
[353191464,1739639459727,-600.11,0.00011452,2]
[353191465,1739639459737,-500.0,0.00011452,2]
[353191466,1739639459747,-500.0,0.00011452,2]
[353191467,1739639459755,-732.53,0.00011452,2]
[353191468,1739639459765,-500.0,0.00011452,2]
[353191469,1739639459775,-500.0,0.00011452,2]
[353191470,1739639459786,-258.55,0.00011452,2]
[353191471,1739639459795,-500.0,0.00011452,2]
[353191472,1739639459805,-500.0,0.00011452,2]
[353191473,1739639459817,-630.19,0.00011452,2]
[353191474,1739639459826,-500.0,0.00011452,2]
[353191475,1739639459835,-500.0,0.00011452,2]
[353191476,1739639459843,-500.0,0.00011452,2]
[353191477,1739639459853,-725.51,0.00011452,2]
[353191478,1739639459863,-500.0,0.00011452,2]
[353191479,1739639459873,-500.0,0.00011452,2]
[353191480,1739639459883,-500.0,0.00011452,2]
[353191481,1739639459893,-500.0,0.00011452,2]
[353191482,1739639459902,-500.0,0.00011452,2]
[353191483,1739639459911,-500.0,0.00011452,2]
[353191484,1739639459920,-500.0,0.00011452,2]
[353191485,1739639459929,-500.0,0.00011452,2]
[353191486,1739639459939,-500.0,0.00011452,2]
[353191487,1739639459948,-500.0,0.00011452,2]
[353191488,1739639459995,-500.0,0.00011452,2]
[353191489,1739639460004,-607.26,0.00011452,2]
[353191490,1739639460013,-500.0,0.00011452,2]
[353191491,1739639460026,-515.01,0.00011452,2]
[353191492,1739639460036,-500.0,0.00011452,2]
[353191493,1739639460044,-269.91,0.00011452,2]
[353191494,1739639460053,-859.11,0.00011452,2]
[353191495,1739639460062,-500.0,0.00011452,2]
[353191496,1739639460071,-395.25,0.00011452,2]
[353191497,1739639460081,-500.0,0.00011452,2]
[353191498,1739639460090,-729.9,0.00011452,2]
[353191499,1739639460099,-500.0,0.00011452,2]
[353191500,1739639460109,-500.0,0.00011452,2]
[353191501,1739639460119,-500.0,0.00011452,2]
[353191502,1739639460129,-500.0,0.00011452,2]
[353191503,1739639460138,-500.0,0.00011452,2]
[353191504,1739639460147,-378.27,0.00011452,2]
[353191505,1739639460156,-500.0,0.00011452,2]
[353191506,1739639460166,-500.0,0.00011452,2]
[353191507,1739639460176,-500.0,0.00011452,2]
[353191508,1739639460185,-561.9,0.00011452,2]
[353191509,1739639460195,-500.0,0.00011452,2]
[353191510,1739639460204,-500.0,0.00011452,2]
[353191511,1739639460213,-556.95,0.00011452,2]
[353191512,1739639460223,-500.0,0.00011452,2]
[353191513,1739639460232,-349.1,0.00011452,2]
[353191514,1739639460241,-500.0,0.00011452,2]
[353191515,1739639460251,-506.79,0.00011452,2]
[353191516,1739639460260,-500.0,0.00011452,2]
[353191517,1739639460270,-500.0,0.00011452,2]
[353191518,1739639460279,-171.8,0.00011452,2]
[353191519,1739639460289,-500.0,0.00011452,2]
[353191520,1739639460298,-500.0,0.00011452,2]
[353191521,1739639460306,-500.0,0.00011452,2]
[353191522,1739639460315,-798.13,0.00011452,2]
[353191523,1739639460326,-500.0,0.00011452,2]
[353191524,1739639460335,-609.38,0.00011452,2]
[353191525,1739639460345,-500.0,0.00011452,2]
[353191526,1739639460355,-500.0,0.00011452,2]
[353191527,1739639460365,-185.15,0.00011452,2]
[353191528,1739639460375,-511.06,0.00011452,2]
[353191529,1739639460385,-500.0,0.00011452,2]
[353191530,1739639460394,-695.21,0.00011452,2]
[353191531,1739639460403,-681.48,0.00011452,2]
[353191532,1739639460412,-500.0,0.00011452,2]
[353191533,1739639460423,-1200.0,0.00011452,2]
[353191534,1739639460431,-620.31,0.00011452,2]
[353191535,1739639460441,-280.67,0.00011452,2]
[353191536,1739639460451,-514.72,0.00011452,2]
[353191537,1739639460459,-500.0,0.00011452,2]
[353191538,1739639460469,-500.0,0.00011452,2]
[353191539,1739639460478,-500.0,0.00011452,2]
[353191540,1739639460487,-945.55,0.00011452,2]
[353191541,1739639460496,-671.54,0.00011452,2]
[353191542,1739639460505,-248.50524059,0.00011452,2]
[353191543,1739639460514,-500.0,0.00011452,2]
[353191544,1739639460524,-500.0,0.00011452,2]
[353191545,1739639460532,-500.0,0.00011452,2]
[353191546,1739639460542,-1364.32,0.00011452,2]
[353191547,1739639460551,-1132.02,0.00011452,2]
[353191548,1739639460560,-500.0,0.00011452,2]
[353191549,1739639460569,-500.0,0.00011452,2]
[353191550,1739639460579,-629.02,0.00011452,2]
[353191551,1739639460588,-500.0,0.00011452,2]
[353191552,1739639460597,-642.91,0.00011452,2]
[353191553,1739639460606,-756.88,0.00011452,2]
[353191554,1739639460615,-1372.88,0.00011452,2]
[353191555,1739639460625,-619.41,0.00011452,2]
[353191556,1739639460634,-500.0,0.00011452,2]
[353191557,1739639460643,-748.33,0.00011452,2]
[353191558,1739639460653,-1057.73,0.00011452,2]
[353191559,1739639460662,-568.36,0.00011452,2]
[353191560,1739639460671,-500.0,0.00011452,2]
[353191561,1739639460682,-758.54,0.00011452,2]
[353191562,1739639460691,-1532.91,0.00011452,2]
[353191563,1739639460701,-1216.91,0.00011452,2]
[353191564,1739639460710,-745.46,0.00011452,2]
[353191565,1739639460719,-1636.35,0.00011452,2]
[353191566,1739639460729,-773.3,0.00011452,2]
[353191567,1739639460738,-500.0,0.00011452,2]
[353191568,1739639460747,-614.98,0.00011452,2]
[353191569,1739639460757,-920.17,0.00011452,2]
[353191570,1739639460766,-689.97,0.00011452,2]
[353191571,1739639460776,-500.0,0.00011452,2]
[353191572,1739639460787,-500.0,0.00011452,2]
[353191573,1739639460797,-1655.48,0.00011452,2]
[353191574,1739639460807,-999.69,0.00011452,2]
[353191575,1739639460816,-669.73,0.00011452,2]
[353191576,1739639460827,-500.0,0.00011452,2]
[353191577,1739639460836,-1252.85,0.00011452,2]
[353191578,1739639460845,-1817.48,0.00011452,2]
[353191579,1739639460857,-1065.41,0.00011452,2]
[353191580,1739639460866,-500.0,0.00011452,2]
[353191581,1739639460878,-1449.0,0.00011452,2]
[353191582,1739639460890,-4333.02,0.00011452,2]
[353191583,1739639460898,-1804.11,0.00011452,2]
[353191584,1739639460908,-1710.99,0.00011452,2]
[353191585,1739639460918,-1246.87,0.00011452,2]
[353191586,1739639460928,-1483.42,0.00011452,2]
[353191587,1739639460938,-3870.78,0.00011452,2]
[353191588,1739639460947,-500.0,0.00011452,2]
[353191589,1739639460957,-1203.02,0.00011452,2]
[353191590,1739639460967,-1118.26,0.00011452,2]
[353191591,1739639460977,-1480.95,0.00011452,2]
[353191592,1739639460986,-1083.98,0.00011452,2]
[353191593,1739639460996,-925.02,0.00011452,2]
[353191594,1739639461006,-1078.01,0.00011452,2]
[353191595,1739639461016,-1767.51,0.00011452,2]
[353191596,1739639461025,-1262.59,0.00011452,2]
[353191597,1739639461034,-1413.3,0.00011452,2]
[353191598,1739639461044,-500.0,0.00011452,2]
[353191599,1739639461054,-1841.62,0.00011452,2]
[353191600,1739639461063,-956.67,0.00011452,2]
[353191601,1739639461072,-1096.54,0.00011452,2]
[353191602,1739639461081,-1305.88,0.00011452,2]
[353191603,1739639461091,-732.37,0.00011452,2]
[353191604,1739639461100,-903.44,0.00011452,2]
[353191605,1739639461110,-500.0,0.00011452,2]
[353191606,1739639461119,-1169.74,0.00011452,2]
[353191607,1739639461128,-1825.74,0.00011452,2]
[353191608,1739639461138,-1810.94,0.00011452,2]
[353191609,1739639461151,-500.0,0.00011452,2]
[353191610,1739639461160,-929.26,0.00011452,2]
[353191611,1739639461170,-1411.43,0.00011452,2]
[353191612,1739639461180,-500.0,0.00011452,2]
[353191613,1739639461190,-500.0,0.00011452,2]
[353191614,1739639461199,-500.0,0.00011452,2]
[353191615,1739639461208,-994.22,0.00011452,2]
[353191616,1739639461218,-2252.1,0.00011452,2]
[353191617,1739639461227,-500.0,0.00011452,2]
[353191618,1739639461236,-505.14,0.00011452,2]
[353191619,1739639461245,-2001.05,0.00011452,2]
[353191620,1739639461255,-859.75,0.00011452,2]
[353191621,1739639461264,-1238.95,0.00011452,2]
[353191622,1739639461273,-2034.02,0.00011452,2]
[353191623,1739639461283,-769.84,0.00011452,2]
[353191624,1739639461293,-527.13,0.00011452,2]
[353191625,1739639461303,-1422.34,0.00011452,2]
[353191626,1739639461314,-500.0,0.00011452,2]
[353191627,1739639461323,-1405.36,0.00011452,2]
[353191628,1739639461333,-682.01,0.00011452,2]
[353191629,1739639461342,-650.06,0.00011452,2]
[353191630,1739639461351,-500.0,0.00011452,2]
[353191631,1739639461360,-708.99,0.00011452,2]
[353191632,1739639461370,-1138.23,0.00011452,2]
[353191633,1739639461379,-500.0,0.00011452,2]
[353191634,1739639461389,-832.37,0.00011452,2]
[353191635,1739639461398,-1530.46,0.00011452,2]
[353191636,1739639461408,-712.77,0.00011452,2]
[353191637,1739639461417,-500.0,0.00011452,2]
[353191638,1739639461428,-500.0,0.00011452,2]
[353191639,1739639461437,-1081.12,0.00011452,2]
[353191640,1739639461447,-1105.64,0.00011452,2]
[353191641,1739639461456,-800.45,0.00011452,2]
[353191642,1739639461465,-890.19,0.00011452,2]
[353191643,1739639461475,-899.76,0.00011452,2]
[353191644,1739639461485,-500.0,0.00011452,2]
[353191645,1739639461494,-898.14,0.00011452,2]
[353191646,1739639461503,-541.36,0.00011452,2]
[353191647,1739639461513,-500.0,0.00011452,2]
[353191648,1739639461522,-763.98,0.00011452,2]
[353191649,1739639461531,-695.29,0.00011452,2]
[353191650,1739639461540,-635.13,0.00011452,2]
[353191651,1739639461550,-500.0,0.00011452,2]
[353191652,1739639461565,-2350.89,0.00011452,2]
[353191653,1739639461580,-500.0,0.00011452,2]
[353191654,1739639461596,-1026.92,0.00011452,2]
[353191655,1739639461615,-1720.36,0.00011452,2]
[353191656,1739639461632,-500.0,0.00011452,2]
[353191657,1739639461651,-781.1,0.00011452,2]
[353191658,1739639461671,-627.61,0.00011452,2]
[353191659,1739639461691,-500.0,0.00011474,2]
[353191660,1739639461711,-500.0,0.00011501,2]
[353191661,1739639461733,-150.0,0.00011526,2]
[353191662,1739639461755,-177.54705676,0.00011526,2]
[353191663,1739639461776,-150.0,0.00011526,2]
[353191664,1739639461799,-150.0,0.00011526,2]
[353191665,1739639461817,-150.0,0.00011526,2]
[353191666,1739639461839,-2651.65094001,0.00011526,2]
[353191667,1739639461860,-1230.10821492,0.00011526,2]
[353191668,1739639461879,-25401.39464715,0.00011526,2]
[353191669,1739639461889,-1849.10740775,0.00011526,2]
[353191670,1739639461898,-434.67426805,0.00011526,2]
[353191671,1739639461908,-500.0,0.00011529,2]
[353191672,1739639461918,-334.355567,0.00011534,2]
[353191673,1739639461928,-646.332284,0.00011534,2]
[353191674,1739639461937,-150.036577,0.00011534,2]
[353191675,1739639461947,-1611.31,0.00011534,2]
[353191676,1739639461959,-500.0,0.00011534,2]
[353191677,1739639461969,-500.0,0.00011534,2]
[353191678,1739639461978,-500.0,0.00011534,2]
[353191679,1739639461988,-500.0,0.00011534,2]
[353191680,1739639461999,-577.24,0.00011534,2]
[353191681,1739639462009,-732.53,0.00011534,2]
[353191682,1739639462018,-500.0,0.00011534,2]
[353191683,1739639462027,-500.0,0.00011534,2]
[353191684,1739639462036,-500.0,0.00011534,2]
[353191685,1739639462045,-500.0,0.00011534,2]
[353191686,1739639462054,-630.19,0.00011534,2]
[353191687,1739639462063,-405.08,0.00011534,2]
[353191688,1739639462072,-500.0,0.00011534,2]
[353191689,1739639462081,-500.0,0.00011534,2]
[353191690,1739639462091,-725.51,0.00011534,2]
[353191691,1739639462100,-500.0,0.00011534,2]
[353191692,1739639462110,-500.0,0.00011534,2]
[353191693,1739639462120,-500.0,0.00011534,2]
[353191694,1739639462129,-500.0,0.00011534,2]
[353191695,1739639462139,-500.0,0.00011534,2]
[353191696,1739639462148,-594.86593089,0.00011534,2]
[353191697,1739639462159,-500.0,0.00011534,2]
[353191698,1739639462170,-500.0,0.00011534,2]
[353191699,1739639462181,-161.29,0.00011534,2]
[353191700,1739639462191,-500.0,0.00011534,2]
[353191701,1739639462201,-473.54,0.00011534,2]
[353191702,1739639462210,-607.26,0.00011534,2]
[353191703,1739639462220,-500.0,0.00011534,2]
[353191704,1739639462230,-500.0,0.00011534,2]
[353191705,1739639462240,-859.11,0.00011534,2]
[353191706,1739639462250,-500.0,0.00011534,2]
[353191707,1739639462259,-500.0,0.00011534,2]
[353191708,1739639462269,-729.9,0.00011534,2]
[353191709,1739639462280,-500.0,0.00011534,2]
[353191710,1739639462289,-500.0,0.00011534,2]
[353191711,1739639462299,-500.0,0.00011534,2]
[353191712,1739639462308,-500.0,0.00011534,2]
[353191713,1739639462319,-500.0,0.00011534,2]
[353191714,1739639462330,-500.0,0.00011534,2]
[353191715,1739639462339,-500.0,0.00011534,2]
[353191716,1739639462348,-500.0,0.00011534,2]
[353191717,1739639462358,-561.9,0.00011534,2]
[353191718,1739639462367,-500.0,0.00011534,2]
[353191719,1739639462377,-500.0,0.00011534,2]
[353191720,1739639462387,-556.95,0.00011534,2]
[353191721,1739639462396,-500.0,0.00011534,2]
[353191722,1739639462406,-444.62,0.00011534,2]
[353191723,1739639462416,-506.79,0.00011534,2]
[353191724,1739639462428,-500.0,0.00011534,2]
[353191725,1739639462439,-500.0,0.00011534,2]
[353191726,1739639462449,-500.0,0.00011534,2]
[353191727,1739639462459,-298.35,0.00011534,2]
[353191728,1739639462468,-500.0,0.00011534,2]
[353191729,1739639462478,-798.13,0.00011534,2]
[353191730,1739639462489,-319.51,0.00011534,2]
[353191731,1739639462499,-609.38,0.00011534,2]
[353191732,1739639462509,-500.0,0.00011534,2]
[353191733,1739639462518,-500.0,0.00011534,2]
[353191734,1739639462528,-511.06,0.00011534,2]
[353191735,1739639462538,-500.0,0.00011534,2]
[353191736,1739639462547,-695.21,0.00011534,2]
[353191737,1739639462557,-681.48,0.00011534,2]
[353191738,1739639462566,-500.0,0.00011534,2]
[353191739,1739639462575,-1200.0,0.00011534,2]
[353191740,1739639462585,-620.31,0.00011534,2]
[353191741,1739639462595,-514.72,0.00011534,2]
[353191742,1739639462605,-500.0,0.00011534,2]
[353191743,1739639462615,-500.0,0.00011534,2]
[353191744,1739639462625,-500.0,0.00011534,2]
[353191745,1739639462635,-945.55,0.00011534,2]
[353191746,1739639462644,-671.54,0.00011534,2]
[353191747,1739639462654,-500.0,0.00011534,2]
[353191748,1739639462664,-500.0,0.00011534,2]
[353191749,1739639462674,-562.0714182,0.00011534,2]
[353191750,1739639462684,-1364.32,0.00011534,2]
[353191751,1739639462693,-1132.02,0.00011534,2]
[353191752,1739639462703,-500.0,0.00011534,2]
[353191753,1739639462713,-500.0,0.00011534,2]
[353191754,1739639462723,-629.02,0.00011534,2]
[353191755,1739639462732,-500.0,0.00011534,2]
[353191756,1739639462742,-642.91,0.00011534,2]
[353191757,1739639462752,-756.88,0.00011534,2]
[353191758,1739639462762,-1372.88,0.00011534,2]
[353191759,1739639462772,-619.41,0.00011534,2]
[353191760,1739639462786,-500.0,0.00011534,2]
[353191761,1739639462796,-748.33,0.00011534,2]
[353191762,1739639462806,-1057.73,0.00011534,2]
[353191763,1739639462815,-568.36,0.00011534,2]
[353191764,1739639462826,-500.0,0.00011534,2]
[353191765,1739639462835,-758.54,0.00011534,2]
[353191766,1739639462845,-1532.91,0.00011534,2]
[353191767,1739639462855,-1216.91,0.00011534,2]
[353191768,1739639462865,-745.46,0.00011534,2]
[353191769,1739639462876,-773.3,0.00011534,2]
[353191770,1739639462886,-500.0,0.00011534,2]
[353191771,1739639462895,-1636.35,0.00011534,2]
[353191772,1739639462905,-614.98,0.00011534,2]
[353191773,1739639462914,-920.17,0.00011534,2]
[353191774,1739639462925,-689.97,0.00011534,2]
[353191775,1739639462934,-500.0,0.00011534,2]
[353191776,1739639462944,-496.59,0.00011534,2]
[353191777,1739639462953,-1655.48,0.00011534,2]
[353191778,1739639462963,-999.69,0.00011534,2]
[353191779,1739639462972,-669.73,0.00011534,2]
[353191780,1739639462983,-500.0,0.00011534,2]
[353191781,1739639462994,-1252.85,0.00011534,2]
[353191782,1739639463004,-1817.48,0.00011534,2]
[353191783,1739639463014,-1065.41,0.00011534,2]
[353191784,1739639463024,-500.0,0.00011534,2]
[353191785,1739639463035,-1449.0,0.00011534,2]
[353191786,1739639463045,-4333.02,0.00011534,2]
[353191787,1739639463056,-1804.11,0.00011534,2]
[353191788,1739639463066,-1710.99,0.00011534,2]
[353191789,1739639463077,-1246.87,0.00011534,2]
[353191790,1739639463087,-1483.42,0.00011534,2]
[353191791,1739639463097,-3870.78,0.00011534,2]
[353191792,1739639463107,-500.0,0.00011534,2]
[353191793,1739639463117,-1203.02,0.00011534,2]
[353191794,1739639463127,-1118.26,0.00011534,2]
[353191795,1739639463138,-1480.95,0.00011534,2]
[353191796,1739639463148,-1083.98,0.00011534,2]
[353191797,1739639463157,-925.02,0.00011534,2]
[353191798,1739639463168,-1078.01,0.00011534,2]
[353191799,1739639463179,-1767.51,0.00011534,2]
[353191800,1739639463190,-1413.3,0.00011534,2]
[353191801,1739639463201,-1262.59,0.00011534,2]
[353191802,1739639463211,-500.0,0.00011534,2]
[353191803,1739639463221,-1841.62,0.00011534,2]
[353191804,1739639463231,-956.67,0.00011534,2]
[353191805,1739639463241,-1096.54,0.00011534,2]
[353191806,1739639463251,-1305.88,0.00011534,2]
[353191807,1739639463261,-732.37,0.00011534,2]
[353191808,1739639463271,-500.0,0.00011534,2]
[353191809,1739639463280,-903.44,0.00011534,2]
[353191810,1739639463291,-1169.74,0.00011534,2]
[353191811,1739639463300,-1825.74,0.00011534,2]
[353191812,1739639463310,-1810.94,0.00011534,2]
[353191813,1739639463320,-524.53578625,0.00011534,2]
[353191814,1739639463330,-929.26,0.00011534,2]
[353191815,1739639463341,-1411.43,0.00011534,2]
[353191816,1739639463351,-500.0,0.00011534,2]
[353191817,1739639463360,-500.0,0.00011534,2]
[353191818,1739639463370,-500.0,0.00011534,2]
[353191819,1739639463380,-994.22,0.00011534,2]
[353191820,1739639463390,-2252.1,0.00011534,2]
[353191821,1739639463400,-436.41,0.00011534,2]
[353191822,1739639463410,-505.14,0.00011534,2]
[353191823,1739639463420,-2001.05,0.00011534,2]
[353191824,1739639463431,-859.75,0.00011534,2]
[353191825,1739639463442,-1238.95,0.00011534,2]
[353191826,1739639463452,-2034.02,0.00011534,2]
[353191827,1739639463463,-769.84,0.00011534,2]
[353191828,1739639463473,-527.13,0.00011534,2]
[353191829,1739639463483,-500.0,0.00011534,2]
[353191830,1739639463494,-1422.34,0.00011534,2]
[353191831,1739639463504,-1405.36,0.00011534,2]
[353191832,1739639463515,-682.01,0.00011534,2]
[353191833,1739639463525,-650.06,0.00011534,2]
[353191834,1739639463535,-500.0,0.00011534,2]
[353191835,1739639463545,-708.99,0.00011534,2]
[353191836,1739639463555,-1138.23,0.00011534,2]
[353191837,1739639463565,-500.0,0.00011534,2]
[353191838,1739639463575,-832.37,0.00011534,2]
[353191839,1739639463585,-1530.46,0.00011534,2]
[353191840,1739639463595,-712.77,0.00011534,2]
[353191841,1739639463605,-500.0,0.00011534,2]
[353191842,1739639463614,-500.0,0.00011534,2]
[353191843,1739639463624,-1081.12,0.00011534,2]
[353191844,1739639463635,-1105.64,0.00011534,2]
[353191845,1739639463644,-800.45,0.00011534,2]
[353191846,1739639463655,-890.19,0.00011534,2]
[353191847,1739639463664,-899.76,0.00011534,2]
[353191848,1739639463675,-500.0,0.00011534,2]
[353191849,1739639463685,-898.14,0.00011534,2]
[353191850,1739639463694,-541.36,0.00011534,2]
[353191851,1739639463703,-500.0,0.00011534,2]
[353191852,1739639463715,-763.98,0.00011534,2]
[353191853,1739639463725,-695.29,0.00011534,2]
[353191854,1739639463734,-635.13,0.00011534,2]
[353191855,1739639463744,-500.0,0.00011534,2]
[353191856,1739639463754,-2350.89,0.00011534,2]
[353191857,1739639463764,-500.0,0.00011534,2]
[353191858,1739639463774,-1026.92,0.00011534,2]
[353191859,1739639463787,-1720.36,0.00011534,2]
[353191860,1739639463797,-500.0,0.00011534,2]
[353191861,1739639463807,-781.1,0.00011534,2]
[353191862,1739639463818,-627.61,0.00011534,2]
[353191863,1739639463828,-931.0,0.00011556,2]
[353191864,1739639463838,-500.0,0.00011574,2]
[353191865,1739639463848,-334.355567,0.00011616,2]
[353191866,1739639463859,-646.332284,0.00011616,2]
[353191867,1739639463869,-150.905946,0.00011616,2]
[353191868,1739639463879,-1611.31,0.00011616,2]
[353191869,1739639463890,-500.0,0.00011616,2]
[353191870,1739639463900,-169.98,0.00011616,2]
[353191871,1739639463910,-500.0,0.00011616,2]
[353191872,1739639463921,-408.56,0.00011616,2]
[353191873,1739639463932,-732.53,0.00011616,2]
[353191874,1739639463943,-500.0,0.00011616,2]
[353191875,1739639463953,-500.0,0.00011616,2]
[353191876,1739639463963,-500.0,0.00011616,2]
[353191877,1739639463973,-500.0,0.00011616,2]
[353191878,1739639463983,-630.19,0.00011616,2]
[353191879,1739639463992,-179.01,0.00011616,2]
[353191880,1739639464003,-624.7,0.00011616,2]
[353191881,1739639464012,-725.51,0.00011616,2]
[353191882,1739639464023,-500.0,0.00011616,2]
[353191883,1739639464032,-500.0,0.00011616,2]
[353191884,1739639464043,-323.76,0.00011616,2]
[353191885,1739639464052,-500.0,0.00011616,2]